bitfinex-derivatives/quotes_BTCF0:USTF0_20250129
["timestamp","ask_amount","ask_price","bid_price","bid_amount"]
[1738124902813,0.12528473,102130.0,102120.0,1.07560332]
[1738124905514,0.12528473,102130.0,102120.0,1.02726054]
[1738124905716,0.12528473,102130.0,102120.0,1.07560332]
[1738124908320,0.12528473,102130.0,102120.0,1.02726054]
[1738124908616,0.12528473,102130.0,102120.0,1.07560332]
[1738124910716,0.12528473,102130.0,102120.0,1.02726054]
[1738124911117,0.09288473,102130.0,102120.0,1.02726054]
[1738124911920,0.09288473,102130.0,102120.0,1.07560332]
[1738124912606,0.09288473,102130.0,102120.0,1.43640332]
[1738124912810,0.09288473,102130.0,102120.0,1.4847461]
[1738124914919,0.09288473,102130.0,102120.0,1.4994661]
[1738124915120,0.09288473,102130.0,102120.0,1.4847461]
[1738124915314,0.09288473,102130.0,102120.0,1.4994661]
[1738124915520,0.09288473,102130.0,102120.0,1.4847461]
[1738124915721,0.09288473,102130.0,102120.0,1.4994661]
[1738124915926,0.09288473,102130.0,102120.0,1.4847461]
[1738124916722,0.09288473,102130.0,102120.0,1.4994661]
[1738124917114,0.09288473,102130.0,102120.0,1.4847461]
[1738124917314,0.09288473,102130.0,102120.0,1.4994661]
[1738124917515,0.005,102130.0,102120.0,1.4847461]
[1738124917712,0.005,102130.0,102120.0,1.4994661]
[1738124917924,0.005,102130.0,102120.0,1.4847461]
[1738124918217,0.005,102130.0,102120.0,1.1386661]
[1738124918420,0.005,102130.0,102120.0,1.4994661]
[1738124920314,0.005,102130.0,102120.0,1.60713552]
[1738124920626,0.005,102130.0,102120.0,1.70505473]
[1738124920926,0.08803158,102140.0,102130.0,0.24423878]
[1738124921119,0.08803158,102140.0,102130.0,0.35083945]
[1738124922124,0.09603158,102140.0,102130.0,0.35183945]
[1738124922318,0.09603158,102140.0,102130.0,0.39468912]
[1738124922823,0.09603158,102140.0,102130.0,0.35183945]
[1738124923526,0.09603158,102140.0,102130.0,0.39468918]
[1738124924417,0.00814685,102140.0,102130.0,0.6877077]
[1738124924721,0.00814685,102140.0,102130.0,0.64485797]
[1738124925329,0.41728963,102140.0,102130.0,0.56461519]
[1738124927330,0.41728963,102140.0,102130.0,0.61295797]
[1738124928018,0.50517436,102140.0,102130.0,0.55432349]
[1738124930224,0.45683158,102140.0,102130.0,0.55432349]
[1738124932132,0.09603158,102140.0,102130.0,0.55432349]
[1738124932324,0.09603158,102140.0,102130.0,0.58712349]
[1738124935734,0.00814685,102140.0,102130.0,0.64575797]
[1738124936333,0.00814685,102140.0,102130.0,0.65537012]
[1738124940139,0.00814685,102140.0,102130.0,1.01617012]
[1738124942334,0.00814685,102140.0,102130.0,1.36795138]
[1738124942532,0.00814685,102140.0,102130.0,1.00715138]
[1738124942733,0.00814685,102140.0,102130.0,1.36795138]
[1738124943439,0.00814685,102140.0,102130.0,1.41079999]
[1738124944530,0.00814685,102140.0,102130.0,1.04999999]
[1738124944730,0.00814685,102140.0,102130.0,1.41079999]
[1738124945436,0.00014685,102140.0,102130.0,1.40979999]
[1738124945639,0.00214685,102140.0,102130.0,1.40979999]
[1738124946330,0.00214685,102140.0,102130.0,1.39830949]
[1738124952650,0.00214685,102140.0,102130.0,1.03750949]
[1738124952948,0.00214685,102140.0,102130.0,1.39830949]
[1738124954938,0.00214685,102140.0,102130.0,1.34996671]
[1738124955139,0.00214685,102140.0,102130.0,1.39830949]
[1738124955650,0.00214685,102140.0,102130.0,1.35546088]
[1738124957649,0.00214685,102140.0,102130.0,1.0149402]
[1738124959548,0.00214685,102140.0,102130.0,0.6541402]
[1738124959753,0.00214685,102140.0,102130.0,1.0149402]
[1738124963853,0.00214685,102140.0,102130.0,1.0955402]
[1738124964158,0.00214685,102140.0,102130.0,1.13838881]
[1738124965657,0.00214685,102140.0,102130.0,1.49017007]
[1738124969879,0.00214685,102140.0,102130.0,1.37677007]
[1738124970075,0.00214685,102140.0,102130.0,1.45737007]
[1738124970465,0.00214685,102140.0,102130.0,1.44610949]
[1738124971677,0.00214685,102140.0,102130.0,1.08530949]
[1738124971871,0.00214685,102140.0,102130.0,1.44610949]
[1738124973371,0.00214685,102140.0,102130.0,1.08530949]
[1738124973564,0.00214685,102140.0,102130.0,1.44610949]
[1738124983983,0.00214685,102140.0,102130.0,1.53014742]
[1738124984978,0.00214685,102140.0,102130.0,1.17836616]
[1738124987182,0.00214685,102140.0,102130.0,1.13002338]
[1738124987986,0.00214685,102140.0,102130.0,1.17836616]
[1738124988791,0.00214685,102140.0,102130.0,1.09432823]
[1738124990584,0.00214685,102140.0,102130.0,1.17836616]
[1738124991591,0.00214685,102140.0,102130.0,0.81756616]
[1738124991790,0.00214685,102140.0,102130.0,1.17836616]
[1738124993287,0.00214685,102140.0,102130.0,1.09432823]
[1738124995292,0.00214685,102140.0,102130.0,1.4458977]
[1738125000900,0.00214685,102140.0,102130.0,1.65537317]
[1738125001393,0.00214685,102140.0,102130.0,1.55746355]
[1738125001592,0.00214685,102140.0,102130.0,1.39755492]
[1738125001794,0.05048963,102140.0,102130.0,0.99390631]
[1738125001994,0.00214685,102140.0,102130.0,0.99390631]
[1738125002493,0.00214685,102140.0,102130.0,1.04224909]
[1738125002696,0.00214685,102140.0,102130.0,0.99390631]
[1738125002899,0.00214685,102140.0,102130.0,1.0850977]
[1738125003099,0.00214685,102140.0,102130.0,1.4458977]
[1738125003593,0.00214685,102140.0,102130.0,1.52993563]
[1738125005900,0.00214685,102140.0,102130.0,1.04019285]
[1738125006096,0.00214685,102140.0,102130.0,1.48147285]
[1738125007003,0.00214685,102140.0,102130.0,1.54368732]
[1738125007201,0.00214685,102140.0,102130.0,1.19211785]
[1738125007705,0.00214685,102140.0,102130.0,1.09420823]
[1738125009405,0.00214685,102140.0,102130.0,1.04586545]
[1738125009704,0.00214685,102140.0,102130.0,1.09420823]
[1738125011110,0.00214685,102140.0,102130.0,0.73340823]
[1738125012200,0.00214685,102140.0,102130.0,1.19211785]
[1738125012601,0.00214685,102140.0,102130.0,0.83131785]
[1738125012794,0.44868473,102150.0,102130.0,0.84662103]
[1738125012993,0.44868473,102150.0,102140.0,0.24421978]
[1738125013206,0.44868473,102150.0,102140.0,0.40587224]
[1738125013207,0.08788473,102150.0,102140.0,0.40587224]
[1738125014108,0.09288473,102150.0,102140.0,0.40587224]
[1738125014708,0.09288473,102150.0,102140.0,1.03861283]
[1738125014709,0.005,102150.0,102140.0,1.03861283]
[1738125014897,0.005,102150.0,102140.0,1.02330965]
[1738125016224,0.05334278,102150.0,102140.0,0.97496687]
[1738125017528,0.05334278,102150.0,102140.0,0.94396687]
[1738125018524,0.05376278,102150.0,102140.0,0.94396687]
[1738125020114,0.05376278,102150.0,102140.0,0.95375687]
[1738125021228,0.05376278,102150.0,102140.0,0.96158687]
[1738125021927,0.05376278,102150.0,102140.0,0.62143379]
[1738125022325,0.00542,102150.0,102140.0,0.62143379]
[1738125023126,0.00542,102150.0,102140.0,0.64590379]
[1738125026831,0.00542,102150.0,102140.0,0.70207657]
[1738125027031,0.00542,102150.0,102140.0,0.65373379]
[1738125027032,0.09330473,102150.0,102140.0,0.65373379]
[1738125027530,0.09330473,102150.0,102140.0,0.70207657]
[1738125027718,0.09330473,102150.0,102140.0,0.65373379]
[1738125029136,0.09330473,102150.0,102140.0,0.73417379]
[1738125030133,0.45410473,102150.0,102140.0,0.73417379]
[1738125030335,0.45410473,102150.0,102140.0,1.08538636]
[1738125030336,0.36622,102150.0,102140.0,1.08538636]
[1738125030728,0.00542,102150.0,102140.0,1.08538636]
[1738125030931,0.36622,102150.0,102140.0,1.08538636]
[1738125031328,0.00542,102150.0,102140.0,1.08538636]
[1738125031530,0.36622,102150.0,102140.0,1.08538636]
[1738125031936,0.61042078,102150.0,102140.0,1.08538636]
[1738125032832,0.61042078,102150.0,102140.0,0.73582075]
[1738125033528,0.65876356,102150.0,102140.0,0.69372008]
[1738125033726,0.61042078,102150.0,102140.0,0.69372008]
[1738125033927,0.61042078,102150.0,102140.0,0.73582528]
[1738125034441,0.69830551,102150.0,102140.0,0.57661761]
[1738125035631,0.74664829,102150.0,102140.0,0.57661761]
[1738125036435,0.38584829,102150.0,102140.0,0.57661761]
[1738125036625,1.10744829,102150.0,102140.0,0.57661761]
[1738125038641,1.13700717,102150.0,102140.0,0.04992]
[1738125041842,1.28353015,102150.0,102140.0,0.04992]
[1738125042031,1.08767215,102150.0,102130.0,0.26685695]
[1738125042339,0.68576256,102140.0,102130.0,0.30892486]
[1738125042539,0.68576256,102140.0,102130.0,0.26685695]
[1738125042930,0.68576256,102140.0,102130.0,0.23425695]
[1738125043332,0.74926256,102140.0,102130.0,0.26033695]
[1738125043739,0.74946256,102140.0,102130.0,0.26033695]
[1738125043928,0.75146256,102140.0,102130.0,0.26033695]
[1738125046433,0.195897,102130.0,102120.0,0.64380008]
[1738125046641,0.65338256,102130.0,102120.0,0.64380008]
[1738125047145,0.195916,102120.0,102110.0,0.5579826]
[1738125047444,0.65340156,102120.0,102110.0,0.5579826]
[1738125047645,0.65340156,102120.0,102110.0,0.5736426]
[1738125049450,0.65340156,102120.0,102110.0,0.5776426]
[1738125050546,0.60505878,102120.0,102110.0,0.7735776]
[1738125050749,0.40914278,102120.0,102110.0,0.8065776]
[1738125051235,0.3608,102120.0,102110.0,0.32843778]
[1738125051441,0.62453526,102130.0,102120.0,0.195916]
[1738125051638,0.62453526,102130.0,102120.0,0.226416]
[1738125051843,0.56624727,102130.0,102120.0,0.27475878]
[1738125052239,0.20544727,102130.0,102120.0,0.27475878]
[1738125052437,0.25379005,102130.0,102120.0,0.226416]
[1738125052852,0.25379005,102130.0,102120.0,0.227416]
[1738125053036,0.61459005,102130.0,102120.0,0.227416]
[1738125053241,0.25379005,102130.0,102120.0,0.227416]
[1738125054250,0.04848963,102130.0,102120.0,0.227416]
[1738125055941,0.04848963,102130.0,102120.0,0.27575878]
[1738125056542,0.00014685,102130.0,102120.0,0.27575878]
[1738125060449,0.40928963,102130.0,102120.0,0.227416]
[1738125060946,0.60518663,102130.0,102120.0,0.0315]
[1738125063759,0.60518663,102130.0,102120.0,0.227416]
[1738125066858,0.60518663,102130.0,102120.0,0.27575878]
[1738125066859,0.36094685,102130.0,102120.0,0.27575878]
[1738125067048,0.00014685,102130.0,102120.0,0.27575878]
[1738125067248,0.00014685,102130.0,102120.0,0.31778911]
[1738125067249,0.20544727,102130.0,102120.0,0.31778911]
[1738125070256,0.00014685,102130.0,102120.0,0.31778911]
[1738125071758,0.00014685,102130.0,102120.0,0.32561911]
[1738125071956,0.00014685,102130.0,102120.0,0.73476189]
[1738125072955,0.00014685,102130.0,102120.0,0.74259189]
[1738125074455,0.00014685,102130.0,102120.0,1.0351794]
[1738125074651,0.00014685,102130.0,102120.0,0.6743794]
[1738125074861,0.00014685,102130.0,102120.0,1.0351794]
[1738125075053,0.00014685,102130.0,102120.0,1.0498994]
[1738125075261,0.00014685,102130.0,102120.0,1.04498433]
[1738125075566,0.00014685,102130.0,102120.0,1.05970433]
[1738125078462,0.21518454,102150.0,102140.0,0.195877]
[1738125078669,0.20530042,102150.0,102140.0,0.32457978]
[1738125078867,0.20530042,102150.0,102140.0,0.36659408]
[1738125079070,0.20530042,102150.0,102140.0,0.39799408]
[1738125079462,0.20530042,102150.0,102140.0,0.35597978]
[1738125079661,0.20530042,102150.0,102140.0,0.39798583]
[1738125080257,0.20530042,102150.0,102140.0,0.35597978]
[1738125081068,0.21030042,102150.0,102140.0,0.35597978]
[1738125081566,0.005,102150.0,102140.0,0.35597978]
[1738125082159,0.005,102150.0,102140.0,0.307637]
[1738125082468,0.61000378,102150.0,102130.0,0.63228236]
[1738125082658,0.61000378,102150.0,102130.0,0.75321945]
[1738125084365,0.60700378,102150.0,102130.0,0.75321945]
[1738125084566,0.558661,102150.0,102130.0,0.77852098]
[1738125085471,0.64651781,102150.0,102130.0,0.48593347]
[1738125092978,0.64651781,102150.0,102130.0,0.49376347]
[1738125094179,0.64651781,102150.0,102130.0,0.50159347]
[1738125095376,0.64651781,102150.0,102130.0,0.54444402]
[1738125095574,0.64651781,102150.0,102130.0,0.50159347]
[1738125096288,0.3608,102140.0,102130.0,0.42794916]
[1738125096982,0.45065681,102150.0,102140.0,0.195877]
[1738125097375,0.44865681,102150.0,102140.0,0.195877]
[1738125098184,0.45365681,102150.0,102140.0,0.195877]
[1738125100982,0.45365681,102150.0,102140.0,0.21112072]
[1738125101379,0.45365681,102150.0,102140.0,0.25317606]
[1738125101683,0.45365681,102150.0,102140.0,0.2852069]
[1738125102182,0.45365681,102150.0,102140.0,0.26996318]
[1738125102580,0.45365681,102150.0,102140.0,0.23793234]
[1738125103374,0.57110042,102150.0,102140.0,0.23793234]
[1738125104472,0.57110042,102150.0,102140.0,0.26998231]
[1738125105481,0.57110042,102150.0,102140.0,0.31283248]
[1738125106480,0.57110042,102150.0,102140.0,0.26998231]
[1738125107284,0.57110042,102150.0,102140.0,0.27781231]
[1738125109882,0.57110042,102150.0,102140.0,0.08193531]
[1738125110991,0.57110042,102150.0,102140.0,0.31611617]
[1738125111180,0.57110042,102150.0,102140.0,0.3589661]
[1738125111588,0.57110042,102150.0,102140.0,0.31611617]
[1738125112390,0.57110042,102150.0,102140.0,0.3589661]
[1738125113595,0.57110042,102150.0,102140.0,0.31611617]
[1738125113794,0.21030042,102150.0,102140.0,0.36444223]
[1738125114100,0.21030042,102150.0,102140.0,0.40728999]
[1738125114689,0.21030042,102150.0,102140.0,0.6998775]
[1738125114889,0.21030042,102150.0,102140.0,1.0606775]
[1738125116996,0.21030042,102150.0,102140.0,1.10900356]
[1738125118199,0.21030042,102150.0,102140.0,1.11683356]
[1738125118589,0.21030042,102150.0,102140.0,1.22232348]
[1738125118789,0.005,102150.0,102140.0,1.33935519]
[1738125118989,0.005,102150.0,102140.0,1.34901252]
[1738125119999,0.20544727,102160.0,102140.0,1.44691256]
[1738125120201,0.20544727,102160.0,102150.0,0.50512606]
[1738125120395,0.20544727,102160.0,102150.0,0.59002916]
[1738125120589,0.20544727,102160.0,102150.0,0.62207913]
[1738125121600,0.21044727,102160.0,102150.0,0.62207913]
[1738125123199,0.00514685,102160.0,102150.0,0.91466664]
[1738125123401,0.00514685,102160.0,102150.0,0.92249664]
[1738125124901,0.00514685,102160.0,102150.0,1.11835464]
[1738125126506,0.00514685,102160.0,102150.0,1.07550688]
[1738125129001,0.00514685,102160.0,102150.0,1.11834788]
[1738125130504,0.00514685,102160.0,102150.0,1.07550688]
[1738125132112,0.00514685,102160.0,102150.0,1.17339734]
[1738125133118,0.00514685,102160.0,102150.0,1.15578688]
[1738125133315,0.00514685,102160.0,102150.0,1.12328688]
[1738125134912,0.00514685,102160.0,102150.0,1.15378688]
[1738125135612,0.00514685,102160.0,102150.0,1.19662788]
[1738125142411,0.00514685,102160.0,102150.0,1.20445788]
[1738125144320,0.00514685,102160.0,102150.0,1.17240791]
[1738125144815,0.00514685,102160.0,102150.0,1.52362048]
[1738125149034,0.00514685,102160.0,102150.0,1.50640511]
[1738125151828,0.00514685,102160.0,102150.0,1.47590511]
[1738125152737,0.03754685,102160.0,102150.0,1.47590511]
[1738125154637,0.03754685,102160.0,102150.0,1.49062511]
[1738125157734,0.03754685,102160.0,102150.0,1.41034511]
[1738125157932,0.03754685,102160.0,102150.0,1.49058511]
[1738125158132,0.08587291,102160.0,102150.0,1.36201905]
[1738125158433,0.44667291,102160.0,102150.0,1.03613905]
[1738125158636,0.47847291,102160.0,102150.0,1.03613905]
[1738125158939,0.47847291,102160.0,102150.0,0.72714105]
[1738125159236,0.70651191,102160.0,102150.0,0.72714105]
[1738125159728,0.70651191,102160.0,102150.0,0.68430005]
[1738125160242,0.79436872,102160.0,102150.0,0.68430005]
[1738125160538,0.74604266,102160.0,102150.0,0.73262611]
[1738125160740,0.74604266,102160.0,102150.0,0.77507436]
[1738125161140,0.74604266,102160.0,102150.0,0.73262611]
[1738125161339,0.79436872,102160.0,102150.0,0.73262611]
[1738125161942,0.48620366,102160.0,102150.0,0.97084822]
[1738125162243,0.12540366,102160.0,102150.0,0.9708411]
[1738125162547,0.13509211,102160.0,102150.0,1.0030411]
[1738125163346,0.13509211,102160.0,102150.0,1.00295336]
[1738125164144,0.49589211,102160.0,102150.0,0.96068411]
[1738125164538,0.13509211,102160.0,102150.0,0.62699425]
[1738125164739,0.13509211,102160.0,102150.0,0.65829425]
[1738125165743,0.49589211,102160.0,102150.0,0.60996819]
[1738125166344,0.54421817,102160.0,102150.0,0.60996819]
[1738125168542,0.74005717,102160.0,102150.0,0.35061019]
[1738125168749,0.78838323,102160.0,102150.0,0.35061019]
[1738125168943,0.85038323,102160.0,102150.0,0.35061019]
[1738125169345,0.85038323,102160.0,102150.0,0.30855485]
[1738125171852,0.80205717,102160.0,102150.0,0.50441285]
[1738125172356,0.77045717,102160.0,102150.0,0.50441285]
[1738125172748,0.88790078,102160.0,102150.0,0.211518]
[1738125179962,0.85750078,102160.0,102150.0,0.211518]
[1738125180360,0.85750078,102160.0,102150.0,0.277318]
[1738125182764,0.80917472,102160.0,102150.0,0.277318]
[1738125183565,0.77677472,102160.0,102150.0,0.277318]
[1738125183768,0.58093572,102160.0,102150.0,0.35864406]
[1738125183969,0.58093572,102160.0,102150.0,0.40075141]
[1738125185069,0.46349211,102160.0,102150.0,0.40075141]
[1738125186257,0.45380366,102160.0,102150.0,0.40075141]
[1738125189362,0.45380366,102160.0,102150.0,0.35242535]
[1738125191362,0.36594685,102160.0,102150.0,0.6453202]
[1738125191972,0.36594685,102160.0,102150.0,0.69364626]
[1738125196669,0.36594685,102160.0,102150.0,0.73648946]
[1738125197170,0.36594685,102160.0,102150.0,0.74610433]
[1738125200474,0.36094685,102160.0,102150.0,0.74610433]
[1738125200772,0.36194685,102160.0,102150.0,0.70326113]
[1738125203376,0.36194685,102160.0,102150.0,0.74596123]
[1738125203777,0.36194685,102160.0,102150.0,0.70326113]
[1738125205778,0.36194685,102160.0,102150.0,0.65493507]
[1738125206377,0.36194685,102160.0,102150.0,0.70326113]
[1738125206673,0.36194685,102160.0,102150.0,0.65493507]
[1738125209681,0.44980366,102160.0,102150.0,0.36204022]
[1738125210087,0.49812972,102160.0,102150.0,0.31942535]
[1738125210280,0.44980366,102160.0,102150.0,0.31942535]
[1738125210685,0.49812972,102160.0,102150.0,0.31942535]
[1738125210990,0.52842972,102160.0,102150.0,0.31942535]
[1738125211177,0.72426872,102160.0,102150.0,0.12356735]
[1738125211380,0.77259478,102160.0,102150.0,0.05776735]
[1738125211583,0.83309478,102160.0,102150.0,0.05776735]
[1738125211975,0.78476872,102160.0,102150.0,0.05776735]
[1738125212488,0.83309478,102160.0,102150.0,0.05776735]
[1738125212984,0.83309478,102160.0,102150.0,0.01566]
[1738125213687,0.11859046,102160.0,102150.0,0.62064406]
[1738125213986,0.11859046,102160.0,102150.0,0.39601648]
[1738125214374,0.11859046,102160.0,102150.0,0.75681648]
[1738125214573,0.11859046,102160.0,102150.0,0.39601648]
[1738125214774,0.11859046,102160.0,102150.0,0.75681648]
[1738125216884,0.00114685,102160.0,102150.0,0.85470694]
[1738125217285,0.00114685,102160.0,102150.0,0.89574593]
[1738125218190,0.00114685,102160.0,102150.0,0.79785547]
[1738125219682,0.00114685,102160.0,102150.0,0.75681648]
[1738125220494,0.00114685,102160.0,102150.0,1.10802905]
[1738125222898,0.00014685,102160.0,102150.0,1.11002905]
[1738125223896,0.00014685,102160.0,102150.0,1.15053416]
[1738125224592,0.00014685,102160.0,102150.0,1.11002905]
[1738125224792,0.00014685,102160.0,102150.0,1.15082252]
[1738125225600,0.00014685,102160.0,102150.0,1.11002905]
[1738125226895,0.00014685,102160.0,102150.0,1.20791951]
[1738125227395,0.00014685,102160.0,102150.0,1.60951298]
[1738125227596,0.20548117,102170.0,102160.0,0.195839]
[1738125227802,0.20548117,102170.0,102160.0,0.77566354]
[1738125227985,0.20548117,102170.0,102160.0,0.81645701]
[1738125228191,0.20548117,102170.0,102160.0,0.91434747]
[1738125228384,0.20548117,102170.0,102160.0,0.873554]
[1738125229093,0.20548117,102170.0,102160.0,0.889214]
[1738125229790,0.20648117,102170.0,102160.0,0.889214]
[1738125232202,0.001,102170.0,102160.0,0.889214]
[1738125232793,0.00014685,102180.0,102170.0,0.19582]
[1738125232998,0.00014685,102180.0,102170.0,0.74081848]
[1738125234300,0.00314685,102180.0,102170.0,0.74081848]
[1738125235897,0.00014685,102180.0,102170.0,0.74081848]
[1738125236093,0.00114685,102180.0,102170.0,0.74081848]
[1738125236401,0.00114685,102180.0,102170.0,0.38001848]
[1738125236604,0.00114685,102180.0,102170.0,0.74081848]
[1738125237801,0.00114685,102180.0,102170.0,0.84301187]
[1738125238103,0.00114685,102180.0,102170.0,0.74081848]
[1738125240004,0.00114685,102180.0,102170.0,0.75057949]
[1738125240404,0.00114685,102180.0,102170.0,0.79890555]
[1738125240599,0.00114685,102180.0,102170.0,0.75057949]
[1738125242403,0.00114685,102180.0,102170.0,0.79890555]
[1738125244401,0.00114685,102180.0,102170.0,0.75057949]
[1738125245718,0.00114685,102180.0,102170.0,0.79890555]
[1738125246411,0.00114685,102180.0,102170.0,0.75057949]
[1738125246914,0.00114685,102180.0,102170.0,0.89677684]
[1738125248104,0.00114685,102180.0,102170.0,1.25757684]
[1738125248303,0.00146866,102190.0,102180.0,0.195801]
[1738125248507,0.00146866,102190.0,102180.0,0.69542554]
[1738125249709,0.00246866,102190.0,102180.0,0.69542554]
[1738125250711,0.00246866,102190.0,102180.0,0.64709948]
[1738125251514,0.00246866,102190.0,102180.0,0.28629948]
[1738125251710,0.24510806,102190.0,102180.0,0.09049848]
[1738125251909,0.60590806,102190.0,102180.0,0.17069848]
[1738125252115,0.63860806,102190.0,102180.0,0.17069848]
[1738125252417,0.590282,102190.0,102180.0,0.09049848]
[1738125252613,0.590282,102190.0,102180.0,0.17069848]
[1738125253011,0.63860806,102190.0,102180.0,0.17069848]
[1738125253318,0.622382,102190.0,102180.0,0.12852606]
[1738125254603,0.556582,102190.0,102180.0,0.12852606]
[1738125254811,0.195782,102190.0,102180.0,0.17685212]
[1738125255019,0.54992375,102200.0,102180.0,0.37265312]
[1738125255214,0.74569175,102200.0,102190.0,0.04832606]
[1738125256121,0.74569175,102200.0,102190.0,0.05614606]
[1738125256421,0.86413536,102200.0,102190.0,0.05614606]
[1738125257021,0.8158093,102200.0,102190.0,0.25192806]
[1738125257621,0.86413536,102200.0,102190.0,0.25192806]
[1738125257820,0.8158093,102200.0,102190.0,0.25192806]
[1738125258026,0.8158093,102200.0,102190.0,0.25974806]
[1738125262108,0.8158093,102200.0,102190.0,0.30192751]
[1738125262313,0.8158093,102200.0,102190.0,0.36372751]
[1738125266023,0.90380652,102200.0,102190.0,0.36372751]
[1738125267425,0.90380652,102200.0,102190.0,0.37358635]
[1738125268821,0.95213258,102200.0,102190.0,0.05781945]
[1738125270727,1.00045864,102200.0,102190.0,0.01564]
[1738125271519,1.0589844,102200.0,102190.0,0.01564]
[1738125272428,0.195801,102180.0,102170.0,0.38684491]
[1738125272721,0.556601,102180.0,102170.0,0.42906531]
[1738125272928,0.3608,102180.0,102170.0,0.42906531]
[1738125273732,0.3608,102180.0,102170.0,0.44472531]
[1738125273931,0.3608,102180.0,102170.0,0.44672531]
[1738125274721,0.66781206,102190.0,102170.0,0.44672531]
[1738125275029,0.66781206,102190.0,102180.0,0.04832606]
[1738125275228,0.93177865,102190.0,102180.0,0.09054646]
[1738125276531,0.93277865,102190.0,102180.0,0.09054646]
[1738125276934,0.93277865,102190.0,102180.0,0.0422204]
[1738125278732,0.87424508,102190.0,102180.0,0.0422204]
[1738125280338,0.87424508,102190.0,102180.0,0.2380214]
[1738125281936,0.85967114,102190.0,102180.0,0.0422204]
[1738125282125,0.195801,102180.0,102170.0,0.21162585]
[1738125282329,0.63672706,102180.0,102170.0,0.2538247]
[1738125283134,0.63672706,102180.0,102170.0,0.2558247]
[1738125283535,0.68505312,102180.0,102170.0,0.2558247]
[1738125284535,0.68505312,102180.0,102170.0,0.21362585]
[1738125284839,0.89048614,102180.0,102170.0,0.21362585]
[1738125285844,0.84216008,102180.0,102170.0,0.21362585]
[1738125286843,0.85190484,102180.0,102170.0,0.21362585]
[1738125287441,0.9002309,102180.0,102170.0,0.21362585]
[1738125288440,0.5394309,102180.0,102170.0,0.21362585]
[1738125288638,0.9002309,102180.0,102170.0,0.21362585]
[1738125289048,0.5394309,102180.0,102170.0,0.21362585]
[1738125289247,0.9002309,102180.0,102170.0,0.21362585]
[1738125291147,0.9002309,102180.0,102170.0,0.01780685]
[1738125291347,0.78278729,102180.0,102170.0,0.01780685]
[1738125299155,0.81224149,102180.0,102170.0,0.01780685]
[1738125301859,0.76391543,102180.0,102170.0,0.01780685]
[1738125302050,0.81224149,102180.0,102170.0,0.01780685]
[1738125302450,0.95876447,102180.0,102170.0,0.01780685]
[1738125302659,0.95876447,102180.0,102170.0,0.21362685]
[1738125304159,0.95876447,102180.0,102170.0,0.27822685]
[1738125305047,0.91043841,102180.0,102170.0,0.27822685]
[1738125305247,0.87863841,102180.0,102170.0,0.27822685]
[1738125305455,0.32203741,102180.0,102170.0,0.27822685]
[1738125305654,0.32203741,102180.0,102170.0,0.35038973]
[1738125306367,0.68283741,102180.0,102170.0,0.35038973]
[1738125307356,0.63451135,102180.0,102170.0,0.35038973]
[1738125307557,0.63451135,102180.0,102170.0,0.39871579]
[1738125308465,0.575978,102180.0,102170.0,0.39871579]
[1738125309254,0.56623324,102180.0,102170.0,0.39871579]
[1738125311458,0.3608,102180.0,102170.0,0.39871579]
[1738125311966,0.20543324,102190.0,102180.0,0.195801]
[1738125312263,0.20543324,102190.0,102180.0,0.36640994]
[1738125312464,0.2537593,102190.0,102180.0,0.36640994]
[1738125313367,0.2547593,102190.0,102180.0,0.38204994]
[1738125313666,0.2547593,102190.0,102180.0,0.33372388]
[1738125313865,0.6155593,102190.0,102180.0,0.33372388]
[1738125314260,0.8113413,102190.0,102180.0,0.33372388]
[1738125316666,0.69389769,102190.0,102180.0,0.33372388]
[1738125317066,0.69389769,102190.0,102180.0,0.05780288]
[1738125317363,0.72429769,102190.0,102180.0,0.05780288]
[1738125317557,0.72429769,102190.0,102180.0,0.01564]
[1738125319568,0.8417413,102190.0,102180.0,0.01564]
[1738125323261,0.8113413,102190.0,102180.0,0.211441]
[1738125325870,0.8113413,102190.0,102180.0,0.01564]
[1738125326058,0.8740413,102190.0,102180.0,0.01564]
[1738125328672,0.93257465,102190.0,102180.0,0.01564]
[1738125333474,0.98090071,102190.0,102180.0,0.01564]
[1738125335976,0.89286313,102190.0,102180.0,0.01564]
[1738125338477,0.84453707,102190.0,102180.0,0.01564]
[1738125338869,0.89286313,102190.0,102180.0,0.01564]
[1738125339070,0.84453707,102190.0,102180.0,0.01564]
[1738125339874,0.78183707,102190.0,102180.0,0.211441]
[1738125341980,0.78183707,102190.0,102180.0,0.25355262]
[1738125342275,0.81111328,102190.0,102180.0,0.25355262]
[1738125342477,0.20620522,102190.0,102180.0,0.30187868]
[1738125342878,0.25453128,102190.0,102180.0,0.30187868]
[1738125343272,0.25453128,102190.0,102180.0,0.25355262]
[1738125344878,0.25453128,102190.0,102180.0,0.30187868]
[1738125345180,0.25453128,102190.0,102180.0,0.25355262]
[1738125346876,0.13727115,102190.0,102180.0,0.25355262]
[1738125347076,0.13727115,102190.0,102180.0,0.30187868]
[1738125347377,0.08894509,102190.0,102180.0,0.30187868]
[1738125349984,0.13727115,102190.0,102180.0,0.30187868]
[1738125350183,0.04932606,102190.0,102180.0,0.30187868]
[1738125351873,0.001,102190.0,102180.0,0.35020474]
[1738125352079,0.001,102190.0,102180.0,0.30187868]
[1738125362688,0.04932606,102190.0,102180.0,0.25355262]
[1738125362893,0.60590806,102190.0,102180.0,0.05775162]
[1738125368110,0.69385315,102190.0,102180.0,0.05775162]
[1738125371707,0.81111328,102190.0,102180.0,0.05775162]
[1738125372412,0.84381328,102190.0,102180.0,0.05775162]
[1738125373104,0.87471328,102190.0,102180.0,0.05775162]
[1738125374711,0.92303934,102190.0,102180.0,0.05775162]
[1738125374922,0.195801,102180.0,102170.0,0.00014685]
[1738125375111,0.24416506,102160.0,102150.0,0.72788894]
[1738125375414,0.60496506,102160.0,102150.0,0.77004326]
[1738125376115,0.63686506,102160.0,102150.0,0.78570326]
[1738125376621,0.63686506,102160.0,102150.0,0.56715026]
[1738125377114,0.72481015,102160.0,102150.0,0.09878252]
[1738125377508,0.72481015,102160.0,102150.0,0.29464052]
[1738125378420,0.72481015,102160.0,102150.0,0.28664052]
[1738125378617,0.72481015,102160.0,102150.0,0.28864052]
[1738125378919,0.67648409,102160.0,102150.0,0.28864052]
[1738125379418,0.588539,102160.0,102150.0,0.28864052]
[1738125380308,0.63686506,102160.0,102150.0,0.25714052]
[1738125381416,0.63686506,102160.0,102150.0,0.2149862]
[1738125381919,0.556639,102160.0,102150.0,0.26331226]
[1738125383116,0.56648889,102160.0,102150.0,0.26331226]
[1738125383420,0.61481495,102160.0,102150.0,0.0191282]
[1738125383621,0.64591495,102160.0,102150.0,0.0191282]
[1738125384930,0.59758889,102160.0,102150.0,0.2149862]
[1738125385621,0.59758889,102160.0,102150.0,0.26331226]
[1738125387322,0.56648889,102160.0,102150.0,0.26331226]
[1738125390620,0.56648889,102160.0,102150.0,0.2149862]
[1738125390818,0.56648889,102160.0,102150.0,0.26331226]
[1738125391727,0.61481495,102160.0,102150.0,0.213518]
[1738125392029,0.59978889,102160.0,102150.0,0.26184406]
[1738125392226,0.56648889,102160.0,102150.0,0.26184406]